fUSD/lending_fUSD_20240821
["ID","MTS","AMOUNT","RATE_DAILY","PERIOD"]
[335474680,1724255434993,-1654.91,0.00014212,2]
[335474681,1724255435006,-785.08,0.00014212,2]
[335474682,1724255435020,-982.24,0.00014212,2]
[335474683,1724255435033,-500.0,0.00014212,2]
[335474684,1724255435044,-500.0,0.00014212,2]
[335474685,1724255435058,-514.63,0.00014212,2]
[335474686,1724255435070,-500.0,0.00014212,2]
[335474687,1724255435083,-155.0,0.00014225,2]
[335474688,1724255435094,-155.0,0.00014225,2]
[335474689,1724255435105,-2212.81480299,0.00014234,2]
[335474690,1724255435116,-318.83937888,0.00014234,2]
[335474691,1724255435128,-3877.48994874,0.00014234,2]
[335474692,1724255435139,-156.36720659,0.00014234,2]
[335474693,1724255435151,-342.47692814,0.00014234,2]
[335474694,1724255435162,-155.13013977,0.00014234,2]
[335474695,1724255435173,-164.40260801,0.00014234,2]
[335474696,1724255435185,-433.13438347,0.00014234,2]
[335474697,1724255435197,-213.8629983,0.00014234,2]
[335474698,1724255435208,-419.42427568,0.00014234,2]
[335474699,1724255435221,-439.82643007,0.00014234,2]
[335474700,1724255435232,-477.19265792,0.00014235,2]
[335474701,1724255435243,-1074.88726643,0.00014235,2]
[335474702,1724255435255,-477.19265792,0.00014235,2]
[335474703,1724255435267,-159.56617666,0.00014235,2]
[335474704,1724255435278,-155.18340632,0.00014235,2]
[335474705,1724255435290,-1397.45840494,0.00014235,2]
[335474706,1724255435302,-298.80085922,0.00014235,2]
[335474707,1724255435315,-270.62814649,0.00014235,2]
[335474708,1724255435327,-260.39879964,0.00014235,2]
[335474709,1724255435338,-206.0070509,0.00014235,2]
[335474710,1724255435350,-395.41564417,0.00014235,2]
[335474711,1724255435363,-164.37927092,0.00014235,2]
[335474712,1724255435375,-600.74422133,0.00014235,2]
[335474713,1724255435386,-528.82499626,0.00014235,2]
[335474714,1724255435399,-167.25085886,0.00014243,2]
[335474715,1724255435411,-258.58445008,0.00014245,2]
[335474716,1724255435422,-1004.25,0.00014245,2]
[335474717,1724255435433,-500.0,0.00014245,2]
[335474718,1724255435444,-500.0,0.00014245,2]
[335474719,1724255435458,-564.48,0.00014245,2]
[335474720,1724255435469,-1505.55,0.00014245,2]
[335474721,1724255435481,-15055.0,0.00014245,2]
[335474722,1724255435492,-1812.23,0.00014245,2]
[335474723,1724255435504,-1146.29,0.00014245,2]
[335474724,1724255435516,-3525.6,0.00014245,2]
[335474725,1724255435527,-1192.21,0.00014245,2]
[335474726,1724255435538,-846.61,0.00014245,2]
[335474727,1724255435550,-1360.31,0.00014245,2]
[335474728,1724255435562,-1716.3,0.00014245,2]
[335474729,1724255435573,-500.0,0.00014245,2]
[335474730,1724255435585,-500.0,0.00014245,2]
[335474731,1724255435597,-922.35,0.00014245,2]
[335474732,1724255435608,-500.0,0.00014245,2]
[335474733,1724255435620,-3623.01,0.00014245,2]
[335474734,1724255435631,-2581.08,0.00014245,2]
[335474735,1724255435643,-6498.15,0.00014245,2]
[335474736,1724255435654,-10427.75,0.00014245,2]
[335474737,1724255435666,-2473.07,0.00014245,2]
[335474738,1724255435677,-4744.75,0.00014245,2]
[335474739,1724255435692,-687.26,0.00014245,2]
[335474740,1724255435705,-15515.71,0.00014245,2]
[335474741,1724255435716,-5024.94,0.00014245,2]
[335474742,1724255435728,-6852.19,0.00014245,2]
[335474743,1724255435739,-500.0,0.00014245,2]
[335474744,1724255435750,-500.0,0.00014245,2]
[335474745,1724255435762,-500.0,0.00014245,2]
[335474746,1724255435773,-2049.47,0.00014245,2]
[335474747,1724255435785,-3803.78,0.00014245,2]
[335474748,1724255435800,-155.0,0.00014245,2]
[335474749,1724255435813,-2445.68,0.00014245,2]
[335474750,1724255435825,-500.0,0.00014245,2]
[335474751,1724255435844,-500.0,0.00014245,2]
[335474752,1724255435864,-287.17126109,0.00014245,2]
[335474753,1724255435879,-500.0,0.00014245,2]
[335474754,1724255435893,-365.80180037,0.00014245,2]
[335474755,1724255435908,-332.32327402,0.00014245,2]
[335474756,1724255435922,-500.0,0.00014245,2]
[335474757,1724255435938,-155.0,0.00014245,2]
[335474758,1724255435951,-500.0,0.00014245,2]
[335474759,1724255435966,-380.32741541,0.00014245,2]
[335474760,1724255435979,-500.0,0.00014245,2]
[335474761,1724255435992,-432.47832469,0.00014245,2]
[335474762,1724255436006,-654.01785935,0.00014245,2]
[335474763,1724255436018,-4615.44,0.00014245,2]
[335474764,1724255436028,-674.67,0.00014245,2]
[335474765,1724255436037,-1362.06320368,0.00014245,2]
[335474766,1724255436047,-1813.65,0.00014245,2]
[335474767,1724255436059,-500.0,0.00014246,2]
[335474768,1724255436264,-500.0,0.00014246,2]
[335474769,1724255436285,-500.0,0.00014246,2]
[335474770,1724255436297,-838.84,0.00014246,2]
[335474771,1724255436308,-1077.04,0.00014246,2]
[335474772,1724255436318,-500.0,0.00014246,2]
[335474773,1724255436327,-588.81,0.00014246,2]
[335474774,1724255436337,-500.0,0.00014246,2]
[335474775,1724255436346,-725.44,0.00014246,2]
[335474776,1724255436356,-500.0,0.00014246,2]
[335474777,1724255436365,-1270.82,0.00014246,2]
[335474778,1724255436374,-445.57660974,0.00014246,2]
[335474779,1724255436383,-649.15,0.00014246,2]
[335474780,1724255436393,-500.0,0.00014246,2]
[335474781,1724255436402,-1429.33,0.00014246,2]
[335474782,1724255436412,-500.0,0.00014246,2]
[335474783,1724255436421,-1646.18,0.00014246,2]
[335474784,1724255436431,-3078.83,0.00014246,2]
[335474785,1724255436440,-500.0,0.00014246,2]
[335474786,1724255436450,-500.0,0.00014246,2]
[335474787,1724255436459,-500.0,0.00014246,2]
[335474788,1724255436468,-500.0,0.00014246,2]
[335474789,1724255436478,-500.0,0.00014246,2]
[335474790,1724255436487,-500.0,0.00014246,2]
[335474791,1724255436496,-169.98942638,0.00014246,2]
[335474792,1724255436506,-500.0,0.00014246,2]
[335474793,1724255436516,-500.0,0.00014246,2]
[335474794,1724255436526,-3008.92,0.00014246,2]
[335474795,1724255436536,-500.0,0.00014246,2]
[335474796,1724255436545,-500.0,0.00014246,2]
[335474797,1724255436555,-500.0,0.00014246,2]
[335474798,1724255436568,-500.0,0.00014246,2]
[335474799,1724255436578,-3197.28,0.00014246,2]
[335474800,1724255436587,-500.0,0.00014246,2]
[335474801,1724255436597,-500.0,0.00014246,2]
[335474802,1724255436606,-500.0,0.00014246,2]
[335474803,1724255436615,-571.58277396,0.00014246,2]
[335474804,1724255436625,-500.0,0.00014246,2]
[335474805,1724255436634,-556.7,0.00014246,2]
[335474806,1724255436643,-560.7,0.00014246,2]
[335474807,1724255436653,-959.58,0.00014246,2]
[335474808,1724255436662,-500.0,0.00014246,2]
[335474809,1724255436672,-500.0,0.00014246,2]
[335474810,1724255436680,-3870.83,0.00014246,2]
[335474811,1724255436689,-3155.97,0.00014246,2]
[335474812,1724255436699,-1868.56,0.00014246,2]
[335474813,1724255436709,-1929.46,0.00014246,2]
[335474814,1724255436719,-799.26,0.00014246,2]
[335474815,1724255436728,-500.0,0.00014246,2]
[335474816,1724255436737,-1816.93,0.00014246,2]
[335474817,1724255436746,-500.0,0.00014246,2]
[335474818,1724255436755,-7712.16,0.00014246,2]
[335474819,1724255436764,-500.0,0.00014246,2]
[335474820,1724255436773,-500.0,0.00014246,2]
[335474821,1724255436783,-710.17,0.00014246,2]
[335474822,1724255436792,-500.0,0.00014246,2]
[335474823,1724255436802,-2992.65,0.00014246,2]
[335474824,1724255436815,-5832.5,0.00014246,2]
[335474825,1724255436825,-500.0,0.00014246,2]
[335474826,1724255436834,-500.0,0.00014246,2]
[335474827,1724255436844,-12320.23,0.00014246,2]
[335474828,1724255436854,-500.0,0.00014246,2]
[335474829,1724255436864,-4008.37,0.00014246,2]
[335474830,1724255436874,-3982.85,0.00014246,2]
[335474831,1724255436884,-2446.81,0.00014246,2]
[335474832,1724255436893,-500.0,0.00014246,2]
[335474833,1724255436903,-860.56,0.00014246,2]
[335474834,1724255436913,-500.0,0.00014246,2]
[335474835,1724255436925,-500.0,0.00014246,2]
[335474836,1724255436936,-696.99,0.00014246,2]
[335474837,1724255436946,-4255.68,0.00014246,2]
[335474838,1724255436955,-989.06,0.00014246,2]
[335474839,1724255436965,-500.0,0.00014246,2]
[335474840,1724255436976,-1962.52,0.00014246,2]
[335474841,1724255436986,-500.0,0.00014246,2]
[335474842,1724255436995,-5857.82,0.00014246,2]
[335474843,1724255437005,-500.0,0.00014246,2]
[335474844,1724255437014,-895.44,0.00014246,2]
[335474845,1724255437024,-2570.62,0.00014246,2]
[335474846,1724255437034,-500.0,0.00014246,2]
[335474847,1724255437044,-582.23,0.00014246,2]
[335474848,1724255437053,-500.0,0.00014246,2]
[335474849,1724255437072,-741.84,0.00014246,2]
[335474850,1724255437082,-500.0,0.00014246,2]
[335474851,1724255437092,-11210.43,0.00014246,2]
[335474852,1724255437101,-500.0,0.00014246,2]
[335474853,1724255437111,-500.0,0.00014246,2]
[335474854,1724255437121,-743.56,0.00014246,2]
[335474855,1724255437131,-431.95160577,0.00014246,2]
[335474856,1724255437140,-29621.6,0.00014246,2]
[335474857,1724255437149,-594.14,0.00014246,2]
[335474858,1724255437159,-1418.79,0.00014246,2]
[335474859,1724255437168,-1224.09,0.00014246,2]
[335474860,1724255437177,-1568.08,0.00014246,2]
[335474861,1724255437186,-3363.65,0.00014246,2]
[335474862,1724255437196,-1156.92,0.00014246,2]
[335474863,1724255437206,-664.58,0.00014246,2]
[335474864,1724255437215,-788.47,0.00014246,2]
[335474865,1724255437225,-4826.12,0.00014246,2]
[335474866,1724255437235,-2325.83,0.00014246,2]
[335474867,1724255437244,-500.0,0.00014246,2]
[335474868,1724255437253,-3515.47,0.00014246,2]
[335474869,1724255437263,-17951.39,0.00014246,2]
[335474870,1724255437272,-2704.75,0.00014246,2]
[335474871,1724255437281,-500.0,0.00014246,2]
[335474872,1724255437291,-1743.48,0.00014246,2]
[335474873,1724255437301,-1878.3,0.00014246,2]
[335474874,1724255437312,-3407.61,0.00014246,2]
[335474875,1724255437322,-500.0,0.00014246,2]
[335474876,1724255437332,-2006.58,0.00014246,2]
[335474877,1724255437341,-500.0,0.00014246,2]
[335474878,1724255437351,-4490.41,0.00014246,2]
[335474879,1724255437360,-525.66,0.00014246,2]
[335474880,1724255437369,-1665.7,0.00014246,2]
[335474881,1724255437379,-1185.7,0.00014246,2]
[335474882,1724255437388,-500.0,0.00014246,2]
[335474883,1724255437398,-2261.31,0.00014246,2]
[335474884,1724255437407,-526.27,0.00014246,2]
[335474885,1724255437417,-2122.62516288,0.00014398,2]
[335474886,1724255437426,-1258.20462876,0.00014398,2]
[335474887,1724255437436,-355.7893,0.0001442,2]
[335474888,1724255437445,-11200.6717,0.0001442,2]
[335474889,1724255437454,-687.39,0.00014486,2]
[335474890,1724255437463,-928.42,0.00014486,2]
[335474891,1724255437472,-551.16,0.00014486,2]
[335474892,1724255437481,-1654.91,0.00014486,2]
[335474893,1724255437491,-785.08,0.00014486,2]
[335474894,1724255437500,-982.24,0.00014486,2]
[335474895,1724255437509,-500.0,0.00014486,2]
[335474896,1724255437519,-500.0,0.00014486,2]
[335474897,1724255437528,-514.63,0.00014486,2]
[335474898,1724255437538,-500.0,0.00014486,2]
[335474899,1724255437547,-129281.88,0.000145,5]
[335474900,1724255437559,-175.55900127,0.000145,2]
[335474901,1724255437568,-629.0037061,0.00014509,2]
[335474902,1724255437578,-27935.3494084,0.00014515,2]
[335474903,1724255437587,-3860.1971167,0.00014515,2]
[335474904,1724255437596,-5822.4076197,0.00014515,2]
[335474905,1724255437605,-178.29633289,0.00014517,2]
[335474906,1724255437615,-1004.25,0.00014519,2]
[335474907,1724255437624,-500.0,0.00014519,2]
[335474908,1724255437633,-500.0,0.00014519,2]
[335474909,1724255437643,-564.48,0.00014519,2]
[335474910,1724255437652,-1505.55,0.00014519,2]
[335474911,1724255437662,-15055.0,0.00014519,2]
[335474912,1724255437672,-1812.23,0.00014519,2]
[335474913,1724255437681,-1146.29,0.00014519,2]
[335474914,1724255437691,-3525.6,0.00014519,2]
[335474915,1724255437701,-1192.21,0.00014519,2]
[335474916,1724255437710,-846.61,0.00014519,2]
[335474917,1724255437720,-1360.31,0.00014519,2]
[335474918,1724255437730,-1716.3,0.00014519,2]
[335474919,1724255437740,-500.0,0.00014519,2]
[335474920,1724255437750,-922.35,0.00014519,2]
[335474921,1724255437762,-500.0,0.00014519,2]
[335474922,1724255437771,-3623.01,0.00014519,2]
[335474923,1724255437780,-2581.08,0.00014519,2]
[335474924,1724255437790,-6498.15,0.00014519,2]
[335474925,1724255437799,-10427.75,0.00014519,2]
[335474926,1724255437812,-2473.07,0.00014519,2]
[335474927,1724255437821,-4744.75,0.00014519,2]
[335474928,1724255437830,-687.26,0.00014519,2]
[335474929,1724255437839,-15515.71,0.00014519,2]
[335474930,1724255437848,-5024.94,0.00014519,2]
[335474931,1724255437857,-6852.19,0.00014519,2]
[335474932,1724255437866,-500.0,0.00014519,2]
[335474933,1724255437876,-500.0,0.00014519,2]
[335474934,1724255437885,-500.0,0.00014519,2]
[335474935,1724255437895,-2049.47,0.00014519,2]
[335474936,1724255437904,-3803.78,0.00014519,2]
[335474937,1724255437914,-2445.68,0.00014519,2]
[335474938,1724255437927,-500.0,0.00014519,2]
[335474939,1724255437936,-500.0,0.00014519,2]
[335474940,1724255437946,-500.0,0.00014519,2]
[335474941,1724255437955,-500.0,0.00014519,2]
[335474942,1724255437965,-500.0,0.00014519,2]
[335474943,1724255437975,-500.0,0.00014519,2]
[335474944,1724255437984,-4615.44,0.00014519,2]
[335474945,1724255437993,-674.67,0.00014519,2]
[335474946,1724255438002,-1813.65,0.00014519,2]
[335474947,1724255438012,-85.17591742,0.0001452,2]
[335474948,1724255438022,-2818.92,0.0001452,2]
[335474949,1724255438031,-500.0,0.0001452,2]
[335474950,1724255438041,-500.0,0.0001452,2]
[335474951,1724255438050,-1226.7,0.0001452,2]
[335474952,1724255438061,-636.88,0.0001452,2]
[335474953,1724255438070,-1242.39,0.0001452,2]
[335474954,1724255438080,-500.0,0.0001452,2]
[335474955,1724255438089,-500.0,0.0001452,2]
[335474956,1724255438099,-500.0,0.0001452,2]
[335474957,1724255438107,-500.0,0.0001452,2]
[335474958,1724255438116,-838.84,0.0001452,2]
[335474959,1724255438125,-16247.4072914,0.0001452,2]
[335474960,1724255438134,-1077.04,0.0001452,2]
[335474961,1724255438143,-500.0,0.0001452,2]
[335474962,1724255438153,-588.81,0.0001452,2]
[335474963,1724255438162,-500.0,0.0001452,2]
[335474965,1724255438171,-725.44,0.0001452,2]
[335474967,1724255438180,-500.0,0.0001452,2]
[335474968,1724255438189,-1270.82,0.0001452,2]
[335474969,1724255438198,-300.1872949,0.0001452,2]
[335474970,1724255438207,-162.67323732,0.0001452,2]
[335474971,1724255438215,-649.15,0.0001452,2]
[335474972,1724255438225,-693.81147751,0.0001452,2]
[335474973,1724255438234,-500.0,0.0001452,2]
[335474974,1724255438243,-1429.33,0.0001452,2]
[335474975,1724255438252,-462.74214424,0.0001452,2]
[335474976,1724255438262,-485.07840464,0.0001452,2]
[335474977,1724255438271,-155.0,0.0001452,2]
[335474978,1724255438280,-413.35824992,0.0001452,2]
[335474979,1724255438289,-181.97999253,0.0001452,2]
[335474980,1724255438298,-1646.18,0.0001452,2]
[335474981,1724255438308,-542.51258823,0.0001452,2]
[335474982,1724255438317,-170.6347928,0.0001452,2]
[335474983,1724255438326,-3078.83,0.0001452,2]
[335474984,1724255438335,-500.0,0.0001452,2]
[335474985,1724255438344,-500.0,0.0001452,2]
[335474986,1724255438353,-500.0,0.0001452,2]
[335474987,1724255438362,-500.0,0.0001452,2]
[335474988,1724255438371,-500.0,0.0001452,2]
[335474989,1724255438380,-500.0,0.0001452,2]
[335474990,1724255438389,-500.0,0.0001452,2]
[335474991,1724255438398,-500.0,0.0001452,2]
[335474992,1724255438407,-3008.92,0.0001452,2]
[335474993,1724255438417,-500.0,0.0001452,2]
[335474994,1724255438427,-500.0,0.0001452,2]
[335474995,1724255438436,-500.0,0.0001452,2]
[335474996,1724255438445,-500.0,0.0001452,2]
[335474997,1724255438454,-3197.28,0.0001452,2]
[335474998,1724255438463,-500.0,0.0001452,2]
[335474999,1724255438472,-500.0,0.0001452,2]
[335475000,1724255438481,-500.0,0.0001452,2]
[335475001,1724255438490,-500.0,0.0001452,2]
[335475002,1724255438499,-556.7,0.0001452,2]
[335475003,1724255438509,-560.7,0.0001452,2]
[335475004,1724255438518,-959.58,0.0001452,2]
[335475005,1724255438527,-500.0,0.0001452,2]
[335475006,1724255438536,-500.0,0.0001452,2]
[335475007,1724255438545,-3870.83,0.0001452,2]
[335475008,1724255438554,-3155.97,0.0001452,2]
[335475009,1724255438565,-1868.56,0.0001452,2]
[335475010,1724255438575,-1929.46,0.0001452,2]
[335475011,1724255438585,-799.26,0.0001452,2]
[335475012,1724255438594,-500.0,0.0001452,2]
[335475013,1724255438603,-1816.93,0.0001452,2]
[335475014,1724255438612,-500.0,0.0001452,2]
[335475015,1724255438622,-7712.16,0.0001452,2]
[335475016,1724255438631,-500.0,0.0001452,2]
[335475017,1724255438640,-500.0,0.0001452,2]
[335475018,1724255438649,-710.17,0.0001452,2]
[335475019,1724255438658,-500.0,0.0001452,2]
[335475020,1724255438668,-2992.65,0.0001452,2]
[335475021,1724255438677,-5832.5,0.0001452,2]
[335475022,1724255438687,-500.0,0.0001452,2]
[335475023,1724255438697,-500.0,0.0001452,2]
[335475024,1724255438706,-12320.23,0.0001452,2]
[335475025,1724255438715,-500.0,0.0001452,2]
[335475026,1724255438724,-4008.37,0.0001452,2]
[335475027,1724255438733,-3982.85,0.0001452,2]
[335475028,1724255438743,-2446.81,0.0001452,2]
[335475029,1724255438751,-511.48478549,0.0001452,2]
[335475030,1724255438760,-860.56,0.0001452,2]
[335475031,1724255438770,-500.0,0.0001452,2]
[335475032,1724255438779,-820.30049,0.0001452,2]
[335475033,1724255438788,-500.0,0.0001452,2]
[335475034,1724255438797,-696.99,0.0001452,2]
[335475035,1724255438806,-4255.68,0.0001452,2]
[335475036,1724255438816,-989.06,0.0001452,2]
[335475037,1724255438826,-500.0,0.0001452,2]
[335475038,1724255438835,-1962.52,0.0001452,2]
[335475039,1724255438844,-500.0,0.0001452,2]
[335475040,1724255438853,-5857.82,0.0001452,2]
[335475041,1724255438863,-500.0,0.0001452,2]
[335475042,1724255438872,-895.44,0.0001452,2]
[335475043,1724255438881,-2570.62,0.0001452,2]
[335475044,1724255438891,-500.0,0.0001452,2]
[335475045,1724255438900,-582.23,0.0001452,2]
[335475046,1724255438909,-500.0,0.0001452,2]
[335475047,1724255438919,-741.84,0.0001452,2]
[335475048,1724255438931,-326.32,0.0001452,2]
[335475049,1724255438940,-11210.43,0.0001452,2]
[335475050,1724255438949,-500.0,0.0001452,2]
[335475051,1724255438958,-500.0,0.0001452,2]
[335475052,1724255438968,-743.56,0.0001452,2]
[335475053,1724255438978,-29621.6,0.0001452,2]
[335475054,1724255438986,-594.14,0.0001452,2]
[335475055,1724255438996,-1418.79,0.0001452,2]
[335475056,1724255439005,-1224.09,0.0001452,2]
[335475057,1724255439015,-1568.08,0.0001452,2]
[335475058,1724255439025,-3363.65,0.0001452,2]
[335475059,1724255439034,-1156.92,0.0001452,2]
[335475060,1724255439043,-664.58,0.0001452,2]
[335475061,1724255439052,-788.47,0.0001452,2]
[335475062,1724255439063,-4826.12,0.0001452,2]
[335475063,1724255439073,-2325.83,0.0001452,2]
[335475064,1724255439083,-500.0,0.0001452,2]
[335475065,1724255439092,-3515.47,0.0001452,2]
[335475066,1724255439101,-17951.39,0.0001452,2]
[335475067,1724255439110,-2704.75,0.0001452,2]
[335475068,1724255439119,-500.0,0.0001452,2]
[335475069,1724255439128,-1743.48,0.0001452,2]
[335475070,1724255439138,-150.0,0.0001452,2]
[335475071,1724255439147,-150.0,0.0001452,2]
[335475072,1724255439156,-150.0,0.0001452,2]
[335475073,1724255439166,-150.0,0.0001452,2]
[335475074,1724255439175,-1878.3,0.0001452,2]
[335475075,1724255439184,-150.0,0.0001452,2]
[335475076,1724255439194,-150.0,0.0001452,2]
[335475077,1724255439203,-150.0,0.0001452,2]
[335475078,1724255439212,-150.0,0.0001452,2]
[335475079,1724255439221,-150.0,0.0001452,2]
[335475080,1724255439230,-150.0,0.0001452,2]
[335475081,1724255439239,-150.0,0.0001452,2]
[335475082,1724255439249,-150.0,0.0001452,2]
[335475083,1724255439258,-150.0,0.0001452,2]
[335475084,1724255439267,-150.0,0.0001452,2]
[335475085,1724255439402,-150.0,0.0001452,2]
[335475086,1724255439415,-150.0,0.0001452,2]
[335475087,1724255439424,-150.0,0.0001452,2]
[335475088,1724255439434,-150.0,0.0001452,2]
[335475089,1724255439443,-150.0,0.0001452,2]
[335475090,1724255439452,-202.39268906,0.0001452,2]
[335475091,1724255439462,-3407.61,0.0001452,2]
[335475092,1724255439474,-500.0,0.0001452,2]
[335475093,1724255439483,-2006.58,0.0001452,2]
[335475094,1724255439492,-500.0,0.0001452,2]
[335475095,1724255439501,-4490.41,0.0001452,2]
[335475096,1724255439510,-525.66,0.0001452,2]
[335475097,1724255439519,-1665.7,0.0001452,2]
[335475098,1724255439529,-1185.7,0.0001452,2]
[335475099,1724255439538,-500.0,0.0001452,2]
[335475100,1724255439548,-2261.31,0.0001452,2]
[335475101,1724255439556,-207.78228052,0.00014535,2]
[335475102,1724255439566,-1000.0,0.00014604,2]
[335475103,1724255439575,-4065.80150893,0.00014633,2]
[335475104,1724255439584,-364.0,0.0001465,2]
[335475105,1724255439594,-155.0,0.00014681,2]
[335475107,1724255439603,-155.0,0.00014681,2]
[335475108,1724255439612,-704.02355928,0.000147,2]
[335475109,1724255439622,-687.39,0.0001476,2]
[335475110,1724255439631,-928.42,0.0001476,2]
[335475111,1724255439640,-551.16,0.0001476,2]
[335475112,1724255439650,-1654.91,0.0001476,2]
[335475113,1724255439659,-785.08,0.0001476,2]
[335475114,1724255439669,-982.24,0.0001476,2]
[335475115,1724255439678,-500.0,0.0001476,2]
[335475116,1724255439687,-500.0,0.0001476,2]
[335475117,1724255439697,-514.63,0.0001476,2]
[335475118,1724255439706,-157.08775971,0.0001478,2]
[335475119,1724255439716,-662.0,0.00014784,2]
[335475120,1724255439725,-22899.4978034,0.0001479,2]
[335475121,1724255439734,-17863.6461983,0.0001479,2]
[335475122,1724255439743,-12827.7945932,0.0001479,2]
[335475123,1724255439753,-3164.3268213,0.0001479,2]
[335475124,1724255439762,-2468.4565258,0.0001479,2]
[335475125,1724255439771,-1772.5862304,0.0001479,2]
[335475126,1724255439780,-4772.8134181,0.0001479,2]
[335475127,1724255439790,-3723.2192166,0.0001479,2]
[335475128,1724255439800,-2673.625015,0.0001479,2]
[335475129,1724255439812,-1004.25,0.00014793,2]
[335475130,1724255439827,-516.95129565,0.00014793,2]
[335475131,1724255439837,-500.0,0.00014793,2]
[335475132,1724255439847,-564.48,0.00014793,2]
[335475133,1724255439856,-1505.55,0.00014793,2]
[335475134,1724255439865,-15055.0,0.00014793,2]
[335475135,1724255439875,-1812.23,0.00014793,2]
[335475136,1724255439884,-1146.29,0.00014793,2]
[335475137,1724255439893,-3525.6,0.00014793,2]
[335475138,1724255439903,-1192.21,0.00014793,2]
[335475139,1724255439912,-846.61,0.00014793,2]
[335475140,1724255439922,-1360.31,0.00014793,2]
[335475141,1724255439936,-1716.3,0.00014793,2]
[335475142,1724255439946,-500.0,0.00014793,2]
[335475143,1724255439955,-922.35,0.00014793,2]
[335475144,1724255439964,-500.0,0.00014793,2]
[335475145,1724255439974,-3623.01,0.00014793,2]
[335475146,1724255439983,-2581.08,0.00014793,2]
[335475147,1724255439993,-6498.15,0.00014793,2]
[335475148,1724255440002,-10427.75,0.00014793,2]
[335475149,1724255440013,-2473.07,0.00014793,2]
[335475150,1724255440023,-4744.75,0.00014793,2]
[335475151,1724255440033,-687.26,0.00014793,2]
[335475152,1724255440042,-15515.71,0.00014793,2]
[335475153,1724255440051,-5024.94,0.00014793,2]
[335475154,1724255440062,-6852.19,0.00014793,2]
[335475155,1724255440073,-500.0,0.00014793,2]
[335475156,1724255440083,-624.98219398,0.00014793,2]
[335475157,1724255440092,-500.0,0.00014793,2]
[335475158,1724255440102,-2049.47,0.00014793,2]
[335475159,1724255440111,-3803.78,0.00014793,2]
[335475160,1724255440120,-2445.68,0.00014793,2]
[335475161,1724255440130,-500.0,0.00014793,2]
[335475162,1724255440140,-500.0,0.00014793,2]
[335475163,1724255440150,-500.0,0.00014793,2]
[335475164,1724255440160,-399.40224217,0.00014793,2]
[335475165,1724255440169,-500.0,0.00014793,2]
[335475166,1724255440179,-538.42591547,0.00014793,2]
[335475167,1724255440188,-4615.44,0.00014793,2]
[335475168,1724255440197,-674.67,0.00014793,2]
[335475169,1724255440206,-1813.65,0.00014793,2]
[335475170,1724255440215,-500.0,0.00014794,5]
[335475171,1724255440224,-509.65,0.00014794,2]
[335475172,1724255440234,-500.0,0.00014794,2]
[335475173,1724255440243,-500.0,0.00014794,2]
[335475174,1724255440252,-166.51676267,0.00014794,2]
[335475175,1724255440262,-510.71,0.00014794,2]
[335475176,1724255440271,-500.0,0.00014794,2]
[335475177,1724255440280,-500.0,0.00014794,2]
[335475178,1724255440290,-745.27,0.00014794,2]
[335475179,1724255440298,-500.0,0.00014794,2]
[335475180,1724255440308,-2443.47,0.00014794,2]
[335475181,1724255440317,-853.17,0.00014794,2]
[335475182,1724255440327,-609.64,0.00014794,2]